bitfinex/quotes_ETHUSD_20241106
["timestamp","ask_amount","ask_price","bid_price","bid_amount"]
[1730893630710,3.79256,2636.8,2636.3,3.79317]
[1730893630867,7.58511,2636.8,2636.2,3.7932]
[1730893631485,3.79266,2636.7,2636.2,3.7932]
[1730893631992,0.7949,2636.6,2636.2,3.7932]
[1730893632195,0.7949,2636.6,2636.0,3.79354]
[1730893632196,9.218551,2636.6,2636.0,3.79354]
[1730893632373,5.425691,2636.6,2636.0,3.79354]
[1730893632577,9.218551,2636.6,2636.0,3.79354]
[1730893632775,1.632911,2636.6,2635.8,3.79379]
[1730893632975,0.8254,2636.3,2635.8,3.79379]
[1730893633183,4.6186,2636.3,2635.8,3.79379]
[1730893633521,4.6186,2636.3,2635.4,4.3208847]
[1730893633522,3.79352,2636.1,2635.9,0.05092485]
[1730893633827,4.61902,2636.0,2635.9,0.05092485]
[1730893633967,4.61902,2636.0,2635.3,0.07588507]
[1730893634174,4.61902,2636.0,2635.4,3.7944]
[1730893634377,3.79379,2635.9,2635.4,3.84554642]
[1730893634572,3.79379,2635.9,2635.4,0.05114642]
[1730893634912,3.79392,2635.8,2635.4,0.05114642]
[1730893635213,1.666654,2636.0,2634.9,0.7685]
[1730893635214,3.7942,2635.6,2634.9,4.56362]
[1730893635409,0.7915,2635.7,2635.0,0.07589279]
[1730893635713,0.7915,2635.7,2635.2,3.79464]
[1730893636071,0.7915,2635.7,2635.4,3.79448]
[1730893636410,0.7915,2635.7,2635.5,0.052098]
[1730893636922,0.7915,2635.7,2635.4,3.79446]
[1730893637072,0.7795,2636.1,2635.8,3.7939]
[1730893637272,0.7795,2636.5,2636.1,3.79347]
[1730893637478,0.7795,2636.5,2636.2,0.05178784]
[1730893637890,4.62369,2636.3,2636.2,0.05178784]
[1730893638100,1.672187,2636.3,2636.2,0.05178784]
[1730893638374,3.79412,2635.7,2635.0,3.79498]
[1730893638611,4.58907,2635.9,2634.7,0.8296]
[1730893638803,4.58907,2635.9,2635.2,3.79466]
[1730893639191,0.7952,2635.9,2635.3,0.04699112]
[1730893639820,0.7952,2635.9,2635.4,3.7944]
[1730893639973,0.7952,2635.9,2635.6,3.79418]
[1730893640179,9.630957,2636.3,2635.6,3.79418]
[1730893640180,0.8043,2636.2,2635.7,3.79404]
[1730893640391,0.8043,2636.2,2635.8,3.79387]
[1730893640794,0.8043,2636.2,2635.9,0.04672522]
[1730893641190,0.8043,2636.2,2635.8,3.79387]
[1730893641391,0.8043,2636.2,2636.0,3.79359]
[1730893641598,0.8043,2636.2,2635.9,0.04672522]
[1730893641789,0.8043,2636.2,2636.1,0.04663662]
[1730893642022,0.8043,2636.2,2636.0,0.04668092]
[1730893642193,0.8043,2636.2,2636.1,0.04663662]
[1730893642396,0.7612,2636.5,2636.1,0.04663662]
[1730893642598,0.37612,2636.4,2636.0,3.79354]
[1730893642922,0.37612,2636.4,2636.1,0.04663662]
[1730893643283,0.37612,2636.4,2635.9,3.79372]
[1730893643595,0.37612,2636.4,2636.0,0.04694665]
[1730893644425,3.79319,2636.3,2636.0,0.04694665]
[1730893644581,4.665539,2636.3,2636.0,0.04694665]
[1730893644786,4.665539,2636.3,2635.8,3.79391]
[1730893645305,4.665539,2636.3,2635.9,0.04699096]
[1730893645684,4.665539,2636.3,2635.8,3.7939]
[1730893645885,4.665539,2636.3,2635.9,0.04699096]
[1730893646107,4.665539,2636.3,2635.7,7.58794]
[1730893646321,4.665539,2636.3,2636.0,0.0468359]
[1730893646548,4.665539,2636.3,2635.8,3.7938]
[1730893646825,0.7612,2636.5,2636.1,0.0467916]
[1730893646997,0.7612,2636.5,2636.2,0.0467473]
[1730893648116,4.55419,2636.5,2636.2,0.0467473]
[1730893648320,3.79307,2636.4,2636.2,0.0467473]
[1730893648524,3.79307,2636.4,2635.9,3.79367]
[1730893648721,0.834704,2636.4,2636.3,0.04669562]
[1730893648930,3.79372,2636.0,2635.4,3.79438]
[1730893649138,4.60505,2635.9,2635.4,3.79438]
[1730893649432,4.60505,2635.9,2635.5,0.04705007]
[1730893649433,4.605,2635.9,2635.5,0.04705007]
[1730893649785,0.8112,2635.9,2635.5,0.04705007]
[1730893650189,0.8112,2635.9,2635.6,3.79418]
[1730893650502,0.8112,2635.9,2635.6,7.63535743]
[1730893650687,0.8112,2635.9,2635.6,3.84117743]
[1730893651491,0.8112,2635.9,2635.6,3.84124743]
[1730893652124,0.8112,2635.9,2635.7,3.79398]
[1730893652310,0.8281,2636.2,2635.8,3.7938]
[1730893652512,1.41051,2636.2,2635.8,3.84080203]
[1730893653107,1.41051,2636.2,2635.8,7.63460203]
[1730893653342,1.41051,2636.2,2635.8,3.7938]
[1730893653656,1.41051,2636.2,2635.9,0.04695773]
[1730893654425,5.20387,2636.2,2635.9,0.04695773]
[1730893654634,4.313877,2636.1,2635.9,0.04695773]
[1730893654947,4.313877,2636.1,2635.5,0.8031]
[1730893655158,0.520387,2636.1,2636.0,0.04692819]
[1730893655318,0.520387,2636.1,2635.7,3.79397]
[1730893655517,4.313867,2636.1,2636.0,0.04692819]
[1730893655721,4.313867,2636.1,2635.7,3.79405]
[1730893656263,4.313867,2636.1,2635.8,0.0470168]
[1730893656422,0.520387,2636.1,2635.8,0.0470168]
[1730893656840,5.20386,2636.2,2635.8,3.8409068]
[1730893656841,0.8281,2636.2,2635.8,3.8409068]
[1730893657029,0.8281,2636.2,2635.9,3.79377]
[1730893657229,0.8281,2636.2,2636.0,0.04692819]
[1730893657760,4.62153,2636.2,2635.7,3.79398]
[1730893657932,4.62153,2636.2,2636.1,0.04688389]
[1730893657933,0.8281,2636.2,2636.1,0.04688389]
[1730893658138,0.8281,2636.2,2635.9,3.79369]
[1730893658360,0.8281,2636.2,2636.1,0.04688389]
[1730893658550,1.789829,2636.2,2636.0,0.04692819]
[1730893658864,1.789829,2636.2,2636.1,0.04688389]
[1730893659564,1.789829,2636.2,2635.9,3.79369]
[1730893659758,1.789829,2636.2,2636.1,0.04688389]
[1730893659963,1.789829,2636.2,2636.0,0.04692819]
[1730893660166,0.8281,2636.2,2636.1,0.04688389]
[1730893661159,4.996,2636.4,2636.0,3.79352]
[1730893661337,4.996,2636.4,2636.1,0.04688389]
[1730893661538,8.78906,2636.4,2635.8,3.79383]
[1730893661776,3.79335,2636.2,2635.8,3.79383]
[1730893662137,4.55446,2636.1,2635.5,0.7944]
[1730893662476,3.79363,2636.0,2635.6,3.79412]
[1730893662832,3.79363,2636.0,2635.5,3.79433]
[1730893663034,3.79363,2636.0,2635.4,7.58878]
[1730893663035,3.79377,2635.9,2635.4,7.58878]
[1730893663379,3.79377,2635.9,2635.5,3.8414439]
[1730893664779,3.79377,2635.9,2635.5,0.0471239]
[1730893664983,4.249237,2635.9,2635.5,0.0471239]
[1730893666891,0.455467,2635.9,2635.5,3.8413639]
[1730893667790,4.5544,2636.1,2635.6,3.79412]
[1730893667998,4.5544,2636.1,2635.5,3.8413639]
[1730893667999,0.7609,2636.1,2635.7,3.794]
[1730893668167,0.7609,2636.1,2635.8,3.79383]
[1730893668562,0.7609,2636.1,2635.9,0.04705739]
[1730893668964,4.55439,2636.1,2635.9,0.04705739]
[1730893669268,1.7214971,2636.1,2636.0,0.04701308]
[1730893669577,1.7214971,2636.1,2635.8,3.79388]
[1730893669781,0.7609,2636.1,2635.8,3.79388]
[1730893669971,0.7609,2636.1,2635.9,0.04705739]
[1730893670353,0.7609,2636.1,2635.9,3.84081739]
[1730893670906,5.7621,2636.4,2636.0,3.79356]
[1730893671061,5.7621,2636.4,2636.1,0.04696878]
[1730893671408,10.510746,2636.4,2635.9,3.79368]
[1730893671755,10.510746,2636.4,2636.0,0.04701308]
[1730893672057,3.7932,2636.3,2636.0,0.04701308]
[1730893672257,3.79344,2636.2,2635.7,3.79405]
[1730893672465,3.79344,2636.2,2635.6,0.7696]
[1730893672466,3.79358,2636.1,2635.8,0.04710169]
[1730893672667,4.552282,2636.1,2635.6,4.56379]
[1730893672900,0.7688,2636.0,2635.7,0.047146]
[1730893673072,0.7688,2636.0,2635.7,3.841136]
[1730893674698,0.7688,2636.0,2635.7,0.047146]
[1730893675260,0.7688,2636.0,2635.7,3.841176]
[1730893677259,0.7574,2636.2,2635.8,3.79381]
[1730893677473,0.7574,2636.2,2635.9,0.04704262]
[1730893677796,0.7574,2636.2,2635.8,3.79381]
[1730893678161,0.7574,2636.2,2635.9,3.79376]
[1730893678801,10.552596,2636.4,2635.9,3.79376]
[1730893678993,10.552596,2636.4,2636.0,0.04699832]
[1730893679164,14.345726,2636.4,2636.0,3.84060832]
[1730893679364,10.552536,2636.4,2636.0,3.79361]
[1730893679616,10.552536,2636.4,2636.1,0.04692448]
[1730893680295,1.0552536,2636.3,2636.1,0.04692448]
[1730893680797,0.8079,2636.4,2636.2,3.79328]
[1730893680986,0.8079,2636.4,2636.1,3.84036448]
[1730893681306,0.8079,2636.4,2636.2,0.04688018]
[1730893681614,0.8079,2636.4,2636.0,3.79354]
[1730893682061,5.440369,2636.4,2636.1,0.04692448]
[1730893682263,5.440369,2636.4,2635.8,0.783]
[1730893682462,3.79362,2636.1,2635.9,0.04701308]
[1730893682704,3.79362,2636.1,2635.4,4.62057]
[1730893682705,4.59522,2636.0,2635.4,4.62057]
[1730893682997,4.59522,2636.0,2635.5,3.84141449]
[1730893683166,0.8016,2636.0,2635.7,3.79405]
[1730893683707,0.8016,2636.0,2635.8,0.04703155]
[1730893684302,4.61991,2636.3,2635.7,3.79394]
[1730893684506,3.7934,2636.2,2635.8,0.04703155]
[1730893685564,4.61991,2636.3,2635.8,3.84093155]
[1730893685764,8.41319,2636.3,2635.8,3.84093155]
[1730893685992,3.79342,2636.2,2635.8,3.84092155]
[1730893686301,0.8267,2636.3,2635.9,3.79365]
[1730893686465,0.8267,2636.3,2636.0,0.04698724]
[1730893686681,4.59212,2636.5,2636.0,3.7936]
[1730893686884,5.430618,2636.5,2636.1,0.04694294]
[1730893688712,1.637698,2636.5,2636.1,3.7934]
[1730893688921,0.7992,2636.5,2636.3,3.79318]
[1730893689119,0.7992,2636.5,2636.1,3.7934]
[1730893689120,0.7992,2636.5,2636.1,7.5868]
[1730893689321,0.7992,2636.5,2636.2,0.04687651]
[1730893689889,3.79319,2636.3,2636.2,0.04687651]
[1730893690122,0.459239,2636.3,2635.7,3.79394]
[1730893690450,3.79337,2636.2,2635.7,3.79394]
[1730893690723,0.8197,2636.0,2635.8,0.04705372]
[1730893690884,0.8197,2636.0,2635.8,3.84087372]
[1730893691314,0.8197,2636.0,2635.8,0.04705372]
[1730893691721,0.76433622,2636.0,2635.8,0.04705372]
[1730893694308,0.76433622,2636.0,2635.6,3.7942]
[1730893694509,0.76433622,2636.0,2635.7,0.04709434]
[1730893694811,4.55796622,2636.0,2635.7,0.04709434]
[1730893695141,0.76433622,2636.0,2635.7,0.04709434]
[1730893695509,4.55799622,2636.0,2635.7,0.04709434]
[1730893696251,0.76433622,2636.0,2635.7,0.04709434]
[1730893696979,0.76433622,2636.0,2635.7,3.84106434]
[1730893698236,0.76433622,2636.0,2635.8,3.79388]
[1730893698435,0.76433622,2636.0,2635.7,0.04709434]
[1730893698684,0.76433622,2636.0,2635.9,0.04705372]
[1730893698964,0.76433622,2636.0,2635.6,7.58831]
[1730893699179,0.76433622,2636.0,2635.9,0.04705372]
[1730893699350,0.76433622,2636.0,2635.6,7.58831]
[1730893699545,0.76433622,2636.0,2635.9,0.04711645]
[1730893699871,0.3972237,2636.2,2635.9,3.79371]
[1730893700036,0.3972237,2636.2,2635.9,3.84082645]
[1730893700233,0.3972237,2636.2,2635.9,0.04711645]
[1730893700648,0.3972237,2636.2,2635.9,3.79375]
[1730893700845,0.3972237,2636.2,2636.0,0.04707215]
[1730893702097,0.3972237,2636.2,2636.1,3.79348]
[1730893702602,0.3972237,2636.2,2636.1,3.84050784]
[1730893704094,0.3972237,2636.2,2636.1,4.60392062]
[1730893704396,1.2008237,2636.2,2636.1,0.04702784]
[1730893704601,1.2008237,2636.2,2636.1,3.84050784]
[1730893705896,0.3972237,2636.2,2636.1,3.84050784]
[1730893710850,0.3972237,2636.2,2636.1,0.04702784]
[1730893711061,0.3972237,2636.2,2636.0,3.79361]
[1730893711216,0.3972237,2636.2,2636.1,0.04539429]
[1730893712332,1.1763237,2636.2,2636.1,0.04539429]
[1730893713557,1.1763237,2636.2,2636.1,0.04529094]
[1730893714068,4.9696637,2636.2,2635.8,3.7939]
[1730893714358,5.84594907,2636.2,2635.8,3.7939]
[1730893714566,4.9696637,2636.2,2635.9,0.04537955]
[1730893715059,1.1763237,2636.2,2635.9,0.04537955]
[1730893719275,1.1763237,2636.2,2635.9,3.83912955]
[1730893719568,1.1763237,2636.2,2635.9,7.63278955]
[1730893719870,1.1763237,2636.2,2635.9,3.83903955]
[1730893721689,1.1763237,2636.2,2635.9,7.63273955]
[1730893721972,1.1763237,2636.2,2635.9,3.83903955]
[1730893722853,0.3972237,2636.2,2635.9,3.83903955]
[1730893723035,0.3972237,2636.2,2636.0,3.79358]
[1730893723234,0.3972237,2636.2,2635.9,3.83913955]
[1730893723531,0.3972237,2636.2,2636.1,0.04497546]
[1730893723732,0.3972237,2636.2,2636.0,0.04501976]
[1730893724056,0.3972237,2636.2,2636.1,0.04497546]
[1730893724372,0.3972237,2636.2,2635.9,3.79376]
[1730893724668,0.3972237,2636.2,2636.1,0.04497546]
[1730893724867,0.3972237,2636.2,2636.0,0.04501976]
[1730893724868,1.1933237,2636.2,2636.0,0.04501976]
[1730893725071,1.1933237,2636.2,2636.1,0.04497546]
[1730893725449,1.1933237,2636.2,2635.8,3.7939]
[1730893725634,1.1933237,2636.2,2636.1,0.04497546]
[1730893725932,1.1933237,2636.2,2635.8,3.7939]
[1730893726364,1.1933237,2636.2,2635.9,0.04506407]
[1730893726569,4.9866637,2636.2,2635.9,0.04506407]
[1730893728648,1.1933237,2636.2,2635.9,0.04506407]
[1730893729630,4.9866637,2636.2,2635.9,0.04506407]
[1730893729834,4.9866637,2636.2,2635.6,3.79408]
[1730893730072,4.9866637,2636.2,2636.0,0.04199624]
[1730893730279,4.9866637,2636.2,2635.6,4.250678]
[1730893730444,4.9866637,2636.2,2636.1,0.04195193]
[1730893730651,4.9866637,2636.2,2635.7,3.79405]
[1730893731164,4.9866637,2636.2,2635.6,3.79408]
[1730893731165,4.9866637,2636.2,2635.8,3.83592485]
[1730893731677,1.1933237,2636.2,2635.9,3.79376]
[1730893731901,1.1933237,2636.2,2635.8,3.83592485]
[1730893732102,1.1933237,2636.2,2636.0,0.04199624]
[1730893732303,0.3972237,2636.2,2635.9,0.85744054]
[1730893732468,0.3972237,2636.2,2636.1,3.83543193]
[1730893732668,0.3972237,2636.2,2636.1,3.79348]
[1730893732892,0.3972237,2636.2,2636.1,3.83543193]
[1730893734201,0.3972237,2636.2,2636.1,0.04195193]
[1730893734496,0.3972237,2636.2,2636.1,3.79348]
[1730893734697,0.3972237,2636.2,2636.0,3.79361]
[1730893735001,0.3972237,2636.2,2636.1,0.04192977]
[1730893735399,0.3972237,2636.2,2635.9,3.79369]
[1730893735575,1.1623237,2636.2,2636.1,0.04192977]
[1730893735894,1.1623237,2636.2,2636.0,0.04197407]
[1730893736058,1.1623237,2636.2,2636.1,0.04192977]
[1730893736265,1.1623237,2636.2,2635.9,3.79368]
[1730893736476,1.1623237,2636.2,2636.1,0.04193346]
[1730893736675,1.1623237,2636.2,2636.0,3.83552776]
[1730893736877,1.1623237,2636.2,2636.1,0.04193346]
[1730893737199,0.3972237,2636.2,2636.1,0.04193346]
[1730893737366,0.3972237,2636.2,2636.1,3.83541346]
[1730893739000,0.3972237,2636.2,2636.1,0.04193346]
[1730893739159,1.2059237,2636.2,2636.1,0.04193346]
[1730893739388,2.08514807,2636.2,2636.1,0.04123588]
[1730893739788,2.08514807,2636.2,2635.8,3.7938]
[1730893740036,2.08514807,2636.2,2636.1,0.04123588]
[1730893740815,5.87847807,2636.2,2636.1,0.04126172]
[1730893741012,2.08514807,2636.2,2635.8,3.7938]
[1730893741226,1.2059237,2636.2,2636.1,0.04126172]
[1730893741543,1.2059237,2636.2,2635.8,7.58765]
[1730893741707,1.2059237,2636.2,2636.1,0.04126172]
[1730893742047,0.3972237,2636.2,2636.1,3.83474172]
[1730893742336,0.3972237,2636.2,2636.1,3.79348]
[1730893742530,0.3972237,2636.2,2636.1,3.83458097]
[1730893744704,0.3972237,2636.2,2636.1,4.74853484]
[1730893744912,0.3972237,2636.2,2636.1,5.48307007]
[1730893745892,0.3972237,2636.2,2636.1,5.49307007]
[1730893746240,3.7e-06,2636.2,2636.1,8.49307007]
[1730893746995,3.7e-06,2636.2,2636.1,8.48307007]
[1730893749494,3.7e-06,2636.2,2636.1,5.48307007]
[1730893753363,3.7e-06,2636.2,2636.1,3.83458097]
[1730893755063,3.7e-06,2636.2,2636.1,0.04110097]
[1730893755275,0.7629037,2636.2,2636.1,0.04110097]
[1730893757261,4.5562337,2636.2,2635.7,3.79401]
[1730893757480,0.7629037,2636.2,2636.1,0.04089634]
[1730893757648,1.21851607,2636.2,2635.8,3.7939]
[1730893757849,1.21851607,2636.2,2636.1,0.04089634]
[1730893758063,1.21851607,2636.2,2634.2,5.42104802]
[1730893758064,0.8277,2636.1,2634.2,5.42104802]
[1730893758269,0.8277,2636.1,2634.2,1.518251]
[1730893758270,8.1169547,2634.3,2634.2,1.518251]
[1730893758468,0.7978,2634.1,2632.7,0.7634]
[1730893758712,0.7978,2634.1,2632.9,3.79808]
[1730893758713,3.0,2633.8,2632.9,3.79808]
[1730893758868,6.11803855,2633.7,2632.7,0.7634]
[1730893759072,0.7709,2633.6,2632.7,4.56171]
[1730893759271,4.56799,2633.6,2632.4,4.59059]
[1730893759511,4.56799,2633.6,2632.5,3.79865]
[1730893759808,4.56799,2633.6,2632.4,0.7918]
[1730893759809,3.79738,2633.4,2632.4,0.7918]
[1730893760012,4.996,2633.5,2632.5,3.79864]
[1730893760228,4.996,2633.5,2632.4,0.7918]
[1730893760229,4.996,2633.5,2632.4,4.59061]
[1730893760511,4.996,2633.5,2632.6,3.79852]
[1730893760703,4.996,2633.5,2632.4,4.5906]
[1730893760899,4.996,2633.5,2632.4,0.7918]
[1730893761112,4.996,2633.5,2632.5,3.79865]
[1730893761769,4.996,2633.5,2632.6,3.79851]
[1730893761971,4.996,2633.5,2632.4,4.59051]
[1730893762167,4.996,2633.5,2632.6,3.79846]
[1730893762372,4.996,2633.5,2632.7,3.79827]
[1730893763185,0.7709,2633.6,2632.6,3.80846]
[1730893763372,4.60711,2634.0,2632.6,3.80847]
[1730893763577,3.7961,2634.3,2633.3,3.79751]
[1730893763778,4.996,2634.4,2633.1,4.56654]
[1730893763779,3.79631,2634.2,2633.1,4.56654]
[1730893764016,3.79631,2634.2,2633.2,3.79762]
[1730893764320,8.79198,2634.4,2633.2,3.79762]
[1730893764321,3.79639,2634.1,2633.2,3.79762]
[1730893764907,3.7965,2634.0,2633.2,3.79762]
[1730893765120,3.79694,2633.7,2633.1,0.7588]
[1730893765839,0.762,2633.8,2633.1,0.7588]
[1730893766328,4.55881,2633.8,2633.1,1.214485]
[1730893766502,0.762,2633.8,2633.1,1.214485]
[1730893766703,5.0828847,2633.8,2632.8,0.7847]
[1730893767438,0.7601,2633.3,2631.9,0.01]
[1730893767621,3.79825,2632.8,2632.0,3.79937]
[1730893767826,3.79793,2633.1,2632.1,3.79914]
[1730893767998,4.253733,2633.1,2632.2,4.2549617]
[1730893768332,3.79809,2632.9,2632.2,0.45115665]
[1730893768546,3.79809,2632.9,2632.2,4.25025665]
[1730893768712,3.79809,2632.9,2632.2,4.32622235]
[1730893769040,3.79793,2633.1,2632.3,3.79895]
[1730893769041,3.7979,2633.1,2632.3,3.79895]
[1730893769200,3.7979,2633.1,2632.3,0.06225402]
[1730893769395,4.2537,2633.1,2632.3,0.06225402]
[1730893769632,3.79819,2632.9,2632.3,0.03958948]
[1730893769931,3.79819,2632.9,2632.3,0.11555522]
[1730893770636,3.79819,2632.9,2632.3,0.03958948]
[1730893770811,3.79826,2632.8,2632.3,0.03958948]
[1730893771132,3.79826,2632.8,2632.2,0.379914]
[1730893771344,3.79826,2632.8,2632.4,0.03575196]
[1730893771513,3.79838,2632.7,2632.3,0.03580008]
[1730893771696,3.79838,2632.7,2632.5,0.03571124]
[1730893771897,4.558037,2632.7,2632.1,0.783]
[1730893772097,3.79838,2632.7,2632.6,0.03567422]
[1730893772326,3.79838,2632.7,2632.1,0.783]
[1730893772532,3.79838,2632.7,2632.6,0.03567422]
[1730893772706,3.79838,2632.7,2632.1,0.783]
[1730893772906,3.79838,2632.7,2632.6,0.03567422]
[1730893773205,3.79825,2632.8,2632.6,0.03567422]
[1730893773419,3.79825,2632.8,2632.1,4.58223]
[1730893773742,3.79823,2632.8,2632.7,0.0356298]
[1730893773904,3.79842,2632.7,2632.1,1.621168]
[1730893774306,3.79842,2632.7,2632.2,0.03585191]
[1730893774704,4.2536,2633.1,2632.3,3.79894]
[1730893775005,3.79797,2633.0,2632.4,3.87476646]
[1730893775323,3.7981,2632.9,2632.5,0.03571864]
[1730893776213,4.2536,2633.1,2632.5,0.03571864]
[1730893776442,4.2536,2633.1,2632.5,3.79866]
[1730893776612,4.2536,2633.1,2632.3,3.79887]
[1730893776613,0.7544,2632.8,2632.6,0.03567422]
[1730893776814,0.7544,2632.8,2631.8,3.79956]
[1730893776815,3.87876598,2632.7,2631.8,3.79956]
[1730893777005,3.79863,2632.6,2631.9,0.07598064]
[1730893777426,3.79863,2632.6,2631.9,3.79951]
[1730893777427,3.87906598,2632.5,2631.9,3.79951]
[1730893777631,3.87906598,2632.5,2631.9,0.07597975]
[1730893777833,3.79863,2632.6,2631.9,3.87541975]
[1730893778042,4.6417846,2632.6,2632.0,3.79938]
[1730893778252,3.87912598,2632.5,2631.9,3.87547975]
[1730893778407,3.79874,2632.5,2631.9,3.87547975]
[1730893778951,3.79874,2632.5,2631.9,3.7995]
[1730893778952,3.87912598,2632.5,2631.9,3.7995]
[1730893779156,3.79882,2632.4,2631.8,3.79964]
[1730893779314,3.75446505,2632.4,2631.8,3.79964]
[1730893780249,3.87945598,2632.3,2631.7,3.79978]
[1730893780422,4.59706,2632.2,2631.6,0.767]
[1730893780613,0.7979,2632.2,2631.7,3.79978]
[1730893780830,0.87828598,2632.2,2631.7,7.59953]
[1730893781050,0.7979,2632.2,2631.8,3.87563566]
[1730893781327,0.7979,2632.2,2631.8,3.79965]
[1730893781525,0.87828598,2632.2,2631.8,3.79967]
[1730893781730,0.7979,2632.2,2631.8,3.79967]
[1730893783231,0.7979,2632.2,2631.9,0.04216717]
[1730893783943,1.2656176,2632.2,2631.9,0.04216717]
[1730893784265,1.34600358,2632.2,2631.6,3.79996]
[1730893784568,0.87828598,2632.2,2632.0,0.03887226]
[1730893784874,0.08038598,2632.3,2632.1,0.04205607]
[1730893785166,4.996,2632.4,2631.9,3.7994]
[1730893785527,4.996,2632.4,2632.0,0.04211162]
[1730893785961,4.996,2632.4,2632.0,3.84147162]
[1730893786166,0.85718598,2632.5,2632.0,3.79936]
[1730893786373,3.79903,2632.3,2632.1,0.04205607]
[1730893786544,3.87941598,2632.3,2632.1,0.04205607]
[1730893786741,3.87941598,2632.3,2631.8,3.79966]
[1730893787073,3.87941598,2632.3,2631.9,0.04216717]
[1730893787434,5.1309617,2632.2,2631.9,0.04216717]
[1730893787641,5.1309617,2632.2,2631.7,0.07598828]
[1730893787982,0.8102,2632.2,2632.0,0.04239354]
[1730893788175,0.8102,2632.2,2631.7,3.87572828]
[1730893788334,0.8102,2632.2,2632.1,0.04233799]
[1730893788536,0.8102,2632.2,2631.7,3.87572828]
[1730893788738,0.8102,2632.2,2632.1,0.04233799]
[1730893788967,0.8102,2632.2,2631.8,3.7996]
[1730893789481,0.8102,2632.2,2631.9,0.04244908]
[1730893790681,0.8102,2632.2,2631.3,3.80037]
[1730893790682,3.79939,2632.0,2631.3,0.7963]
[1730893790898,3.79939,2632.0,2631.4,3.80017]
[1730893791097,3.79939,2632.0,2631.4,3.80025]
[1730893791260,3.79949,2632.0,2631.4,7.60043]
[1730893791658,3.87972598,2632.1,2631.4,3.80018]
[1730893791858,4.34871858,2632.1,2631.5,3.80007]
[1730893792390,3.79954,2631.9,2631.4,3.80018]
[1730893792548,3.79941,2632.0,2631.4,7.60034]
[1730893792752,3.79939,2632.0,2631.4,3.80017]
[1730893792948,3.79957,2631.9,2631.4,3.80017]
[1730893793193,3.79957,2631.9,2631.4,3.79734919]
[1730893793601,4.34870858,2632.1,2631.6,3.79995]
[1730893793756,0.8102,2632.2,2631.6,3.79995]
[1730893793757,0.8102,2632.2,2631.8,3.79963]
[1730893794093,3.79906,2632.3,2631.7,3.87573104]
[1730893794456,9.57103,2632.4,2631.8,4.55765]
[1730893794656,9.57103,2632.4,2631.9,0.07598123]
[1730893794965,3.87946598,2632.3,2631.8,0.7581]
[1730893795187,5.7722,2632.4,2631.8,4.5577]
[1730893795501,0.7762,2632.4,2631.9,0.075981]
[1730893795805,4.60487,2632.7,2632.0,0.075981]
[1730893795957,4.60487,2632.7,2632.1,3.79914]
[1730893796153,4.60487,2632.7,2632.2,0.07597315]
[1730893796502,4.996,2633.2,2632.4,0.7687]
[1730893796669,3.79804,2633.0,2632.4,0.7687]
[1730893796867,3.87831598,2633.1,2632.4,8.36624]
[1730893797057,3.87831598,2633.1,2632.4,0.7687]
[1730893797258,3.79812,2632.9,2632.4,0.84466692]
[1730893797570,7.67622598,2633.1,2632.4,5.48771061]
[1730893797764,3.79795,2633.0,2632.4,5.48771061]
[1730893798189,3.87829598,2633.1,2632.5,3.79866]
[1730893798398,4.996,2633.2,2632.6,0.07596453]
[1730893798693,0.08038598,2633.2,2632.6,3.7985]
[1730893798902,3.79789,2633.1,2632.5,3.79866]
[1730893799073,0.08038598,2633.0,2632.4,1.61296369]
[1730893799279,0.08038598,2633.0,2632.4,5.41176369]
[1730893799527,0.08038598,2633.0,2632.4,9.21056369]
[1730893799797,0.08038598,2633.0,2632.4,5.41176369]
[1730893799992,4.60921,2632.7,2632.0,5.0768911]
[1730893800200,4.60901,2632.9,2632.3,3.79892]
[1730893800356,0.8108,2632.9,2632.4,3.79871]
[1730893800559,0.8108,2632.9,2632.0,1.2775611]
[1730893800799,0.08038598,2632.8,2632.2,3.79901]
[1730893801001,3.87874598,2632.8,2632.2,3.799]
[1730893801215,0.08038598,2632.8,2632.3,3.79895]
[1730893801360,5.1977186,2632.9,2632.3,3.79895]
[1730893801674,0.8108,2632.9,2632.4,3.79881]
[1730893802071,0.8108,2632.9,2632.4,7.59753]
[1730893802575,0.8108,2632.9,2632.4,3.79872]
[1730893802959,4.60893,2632.9,2632.4,3.79872]
[1730893803403,0.8108,2632.9,2632.6,3.79851]
[1730893803982,3.79768,2633.2,2632.6,3.79851]
[1730893803983,0.08038598,2633.0,2632.6,4.62082]
[1730893804221,3.87825598,2633.1,2632.4,4.62112]
[1730893804517,4.34537158,2633.1,2632.6,3.79851]
[1730893804881,0.54750158,2633.1,2632.7,3.7983]
[1730893805284,0.54750158,2633.1,2632.6,3.79844]
[1730893805608,4.34538158,2633.1,2632.6,3.79844]
[1730893805979,0.54750158,2633.1,2632.7,3.79837]
[1730893806723,0.08038598,2633.1,2632.6,3.79843]
[1730893806917,0.08038598,2633.1,2632.7,3.79838]
[1730893807084,0.08038598,2633.1,2632.6,3.79843]
[1730893807680,0.08038598,2633.1,2632.6,7.59687]
[1730893807937,0.08038598,2633.1,2632.6,3.79843]
[1730893808722,0.08038598,2633.1,2632.4,4.62114]
[1730893808723,0.92726258,2633.1,2632.4,4.6211]
[1730893809385,3.79796,2633.0,2632.5,3.79859]
[1730893809582,3.79796,2633.0,2632.6,3.7985]
[1730893809782,3.79796,2633.0,2632.4,4.6211]
[1730893809783,3.79809,2632.9,2632.4,4.6211]
[1730893809996,3.79796,2633.0,2632.5,3.79864]
[1730893810198,4.72150966,2633.0,2632.5,3.79864]
[1730893810477,0.85848598,2632.9,2632.2,4.55717]
[1730893810782,7.59691,2632.7,2632.2,3.79907]
[1730893810986,7.67729598,2632.7,2632.2,3.79907]
[1730893811279,3.79879,2632.5,2632.0,3.79937]
[1730893811480,1.589931,2632.4,2632.0,3.79937]
[1730893811716,5.388821,2632.4,2631.9,3.79952]
[1730893811895,4.62909,2632.4,2631.9,3.79952]
[1730893812932,8.42802,2632.4,2631.9,3.79952]
[1730893813227,3.79903,2632.3,2631.8,3.79959]
[1730893813422,3.79903,2632.3,2631.8,7.59918]
[1730893813587,3.87941598,2632.3,2631.8,7.59918]